bitfinex/quotes_ETHUSD_20240711
["timestamp","ask_amount","ask_price","bid_price","bid_amount"]
[1720658363307,0.06373985,3097.8,3097.0,0.06456416]
[1720658363492,0.06373985,3097.8,3097.3,1.898]
[1720658363666,5.83959906,3098.2,3097.4,0.06455726]
[1720658363867,0.06329807,3098.1,3097.5,0.19625573]
[1720658365269,0.06329807,3098.1,3097.0,3.0]
[1720658366636,0.06329807,3098.1,3097.3,1.898]
[1720658366774,0.06329807,3098.1,3097.4,0.06455501]
[1720658367499,2.4722,3098.3,3097.4,0.06455501]
[1720658367821,0.06359371,3098.2,3097.4,3.06455501]
[1720658367990,0.06359371,3098.2,3097.5,1.0461865]
[1720658368178,0.06359371,3098.2,3097.6,0.06455496]
[1720658368721,0.06359371,3098.2,3097.3,1.898]
[1720658369208,0.06359371,3098.2,3097.4,0.06456065]
[1720658369801,0.06359371,3098.2,3097.3,1.898]
[1720658370120,0.06359371,3098.2,3097.3,2.0878]
[1720658371415,0.06359371,3098.2,3097.4,1.18846077]
[1720658371623,0.06359371,3098.2,3097.4,0.06456064]
[1720658371827,0.06359371,3098.2,3097.7,1.898]
[1720658372196,2.4132,3098.6,3097.3,4.44822724]
[1720658372399,2.4132,3098.6,3097.4,3.54597813]
[1720658372924,0.06337937,3098.5,3097.4,3.54597813]
[1720658374134,0.06337937,3098.5,3097.5,1.12391477]
[1720658374431,0.06337937,3098.5,3097.4,5.23185099]
[1720658374628,0.06337937,3098.5,3097.5,1.12392174]
[1720658374831,0.06337937,3098.5,3097.6,1.75949901]
[1720658375030,0.06337937,3098.5,3097.7,1.96255478]
[1720658375520,0.06337937,3098.5,3097.7,1.898]
[1720658375719,0.06337937,3098.5,3097.6,0.63557727]
[1720658378629,0.06337937,3098.5,3097.4,0.54597813]
[1720658380099,2.2579,3098.4,3097.4,0.54597813]
[1720658380319,0.06380632,3098.3,3097.4,0.54597813]
[1720658380521,2.2579,3098.2,3097.3,2.0878]
[1720658380915,2.2579,3098.2,3097.3,0.1898]
[1720658381319,2.2579,3098.2,3097.0,6.58407231]
[1720658381514,2.2579,3098.2,3097.1,1.12407343]
[1720658384028,2.2579,3098.2,3097.0,4.898]
[1720658384546,6.409,3098.8,3097.0,4.898]
[1720658384547,2.41467322,3098.1,3097.0,4.898]
[1720658384840,0.24146732,3098.0,3097.0,5.62385201]
[1720658385003,2.3514,3098.1,3097.0,5.62385201]
[1720658386099,2.3514,3098.1,3097.0,0.72585201]
[1720658386305,2.3514,3098.1,3096.6,1.898]
[1720658386504,1.11876515,3098.0,3096.6,1.898]
[1720658386710,2.47684629,3097.9,3096.6,1.898]
[1720658392010,2.47684629,3097.9,3096.7,0.06457224]
[1720658393032,2.47684629,3097.9,3096.6,3.58439239]
[1720658393235,2.47684629,3097.9,3096.7,3.23648569]
[1720658393449,2.47684629,3097.9,3096.7,2.11226856]
[1720658393750,2.47684629,3097.9,3096.7,0.42587617]
[1720658394114,0.33755073,3097.8,3096.8,2.81055705]
[1720658394426,0.06314774,3097.7,3096.9,1.52172638]
[1720658394634,0.06314774,3097.7,3096.9,0.39753748]
[1720658394850,0.06314774,3097.7,3096.7,1.16481773]
[1720658394851,0.06314774,3097.7,3096.8,1.68626147]
[1720658395146,0.06314774,3097.7,3096.7,0.49044839]
[1720658395363,3.33755073,3097.8,3096.8,2.81053527]
[1720658395515,3.33755073,3097.8,3096.7,0.49044839]
[1720658395710,3.33755073,3097.8,3096.8,2.87507475]
[1720658395711,0.06313157,3097.7,3096.8,2.87507475]
[1720658396026,3.33755073,3097.8,3096.9,3.20798616]
[1720658396259,3.33755073,3097.8,3097.0,1.12420101]
[1720658396553,3.33755073,3097.8,3097.1,2.81016001]
[1720658396761,3.33755073,3097.8,3096.9,1.07190137]
[1720658396956,0.06308597,3097.7,3097.0,2.8102208]
[1720658397111,3.33755073,3097.8,3097.1,1.51230054]
[1720658397450,3.33755073,3097.8,3097.1,0.38821222]
[1720658397777,0.06308597,3097.7,3096.9,1.07190137]
[1720658397955,3.33755073,3097.8,3096.9,1.07190137]
[1720658398115,0.06308597,3097.7,3097.0,2.81026236]
[1720658398459,3.33755073,3097.8,3097.1,2.81026236]
[1720658398625,3.33755073,3097.8,3096.9,1.07190137]
[1720658398809,3.33755073,3097.8,3097.0,3.01860887]
[1720658399020,3.33755073,3097.8,3096.9,0.39753203]
[1720658399021,0.06308597,3097.7,3096.9,0.39753203]
[1720658399223,3.33755073,3097.8,3096.7,1.10024551]
[1720658399422,3.33755073,3097.8,3096.9,0.67436934]
[1720658399663,3.33755073,3097.8,3097.0,2.81046687]
[1720658399871,3.33755073,3097.8,3097.1,1.12418675]
[1720658400027,3.33755073,3097.8,3096.9,0.67436934]
[1720658400222,0.06309286,3097.7,3097.0,3.65318328]
[1720658400426,0.06309286,3097.7,3097.1,2.8102216]
[1720658400652,3.33755073,3097.8,3097.2,1.12408864]
[1720658400861,3.33755073,3097.8,3097.0,0.84296168]
[1720658401028,0.06312285,3097.7,3097.1,2.81021683]
[1720658401346,3.33755073,3097.8,3097.1,0.36531785]
[1720658401554,0.0630813,3097.7,3097.0,0.16859234]
[1720658401750,3.33755073,3097.8,3096.8,0.67436934]
[1720658402061,3.33755073,3097.8,3096.9,2.81042065]
[1720658402267,3.33755073,3097.8,3097.0,2.81042065]
[1720658402455,3.33755073,3097.8,3096.8,0.67436934]
[1720658402649,3.33755073,3097.8,3096.9,2.8104282]
[1720658402864,3.33755073,3097.8,3097.0,3.15890795]
[1720658403067,3.33755073,3097.8,3097.1,2.81034006]
[1720658403230,3.33755073,3097.8,3097.2,1.12417128]
[1720658403432,3.33755073,3097.8,3097.0,1.02284909]
[1720658403748,3.33755073,3097.8,3097.1,2.81023288]
[1720658403951,3.33755073,3097.8,3097.2,1.50770795]
[1720658404158,0.33755073,3097.8,3097.2,0.3836148]
[1720658404329,0.33755073,3097.8,3097.3,2.81010905]
[1720658404530,0.33755073,3097.8,3097.4,2.81009549]
[1720658404732,0.33755073,3097.8,3097.3,0.06456086]
[1720658404931,0.33755073,3097.8,3097.4,4.70801496]
[1720658405177,0.33755073,3097.8,3097.5,3.35501608]
[1720658405342,0.33755073,3097.8,3097.6,1.12395665]
[1720658405544,0.33755073,3097.8,3097.5,0.54500112]
[1720658405748,0.33755073,3097.8,3097.6,2.80985163]
[1720658405974,0.33755073,3097.8,3097.5,0.54500112]
[1720658406177,0.33755073,3097.8,3097.6,0.31204365]
[1720658406348,0.33755073,3097.8,3097.5,0.54500112]
[1720658406349,0.33755073,3097.8,3097.2,1.06105018]
[1720658406551,0.33755073,3097.8,3097.3,2.81009737]
[1720658406753,0.33755073,3097.8,3097.2,0.3836148]
[1720658406973,0.33755073,3097.8,3097.3,1.12407196]
[1720658407149,0.33755073,3097.8,3097.2,0.3836148]
[1720658407671,0.33755073,3097.8,3097.3,1.12407669]
[1720658407876,0.33755073,3097.8,3097.4,1.12407669]
[1720658408059,0.33755073,3097.8,3097.2,1.06105018]
[1720658408262,0.33755073,3097.8,3097.3,3.01780208]
[1720658408479,2.3689,3097.7,3097.0,0.67743538]
[1720658408636,2.3689,3097.7,3096.8,0.67743538]
[1720658408839,2.3689,3097.7,3096.9,2.81048083]
[1720658409071,2.3689,3097.7,3096.8,0.67743538]
[1720658409372,2.3689,3097.7,3096.9,2.8105281]
[1720658409373,0.06318717,3097.6,3096.9,2.8105281]
[1720658409580,0.06318717,3097.6,3097.0,0.34879635]
[1720658409784,0.06318717,3097.6,3096.7,0.67743538]
[1720658410068,0.06318717,3097.6,3096.8,3.48791448]
[1720658410300,0.06318717,3097.6,3096.9,2.8104791]
[1720658410432,0.06318717,3097.6,3096.7,0.67743538]
[1720658410638,0.06318717,3097.6,3096.8,2.81051932]
[1720658410836,2.4889,3097.5,3096.6,2.57543538]
[1720658411067,2.4889,3097.5,3096.7,2.81074352]
[1720658411267,0.06308323,3097.4,3096.6,1.898]
[1720658411468,0.06308323,3097.4,3096.7,1.12427885]
[1720658411677,2.4889,3097.5,3096.6,1.898]
[1720658411865,2.4889,3097.5,3096.7,1.12427191]
[1720658412181,0.06308323,3097.4,3096.6,2.25715885]
[1720658412368,2.4889,3097.5,3096.7,1.12425941]
[1720658412587,0.33758256,3097.3,3096.6,2.25715885]
[1720658412765,0.33758256,3097.3,3096.7,3.48810733]
[1720658412964,0.33758256,3097.3,3096.8,7.29821137]
[1720658413167,0.33758256,3097.3,3096.9,2.81067195]
[1720658413363,0.33758256,3097.3,3096.8,0.58098404]
[1720658413674,0.33758256,3097.3,3096.9,1.1242105]
[1720658413883,0.33758256,3097.3,3096.8,0.58098404]
[1720658414084,0.33758256,3097.3,3096.8,1.25841942]
[1720658414455,0.33758256,3097.3,3096.9,2.81045231]
[1720658414649,0.33758256,3097.3,3097.0,1.53106809]
[1720658414951,0.33758256,3097.3,3097.0,0.40688717]
[1720658415148,0.06297485,3097.2,3096.8,0.58098404]
[1720658415394,0.06297485,3097.2,3096.9,2.81049225]
[1720658415689,0.06297485,3097.2,3096.8,0.58098404]
[1720658415895,0.06297485,3097.2,3096.9,2.81052873]
[1720658416054,0.06297485,3097.2,3096.9,0.40689482]
[1720658416386,0.06297485,3097.2,3096.8,1.25841942]
[1720658416387,0.06297485,3097.2,3096.8,0.58098404]
[1720658416620,0.06297485,3097.2,3096.9,2.81049427]
[1720658416747,0.06297485,3097.2,3097.0,1.12419771]
[1720658416954,0.06297485,3097.2,3097.1,1.12414721]
[1720658417772,0.06297485,3097.2,3097.1,2.81029777]
[1720658417985,0.06297485,3097.2,3097.1,1.47292053]
[1720658419782,0.06297485,3097.2,3097.1,0.34877332]
[1720658419966,0.06297485,3097.2,3097.1,1.12414508]
[1720658420652,0.06297485,3097.2,3097.1,2.81033532]
[1720658421096,0.06297485,3097.2,3097.1,1.12414065]
[1720658421298,0.06297485,3097.2,3097.1,2.81035204]
[1720658421594,0.06297485,3097.2,3097.1,1.12414065]
[1720658421799,0.06297485,3097.2,3097.1,2.99046918]
[1720658422294,0.06297485,3097.2,3097.1,3.66790456]
[1720658423009,2.55697485,3097.2,3097.1,2.99046918]
[1720658423179,2.55697485,3097.2,3097.1,2.81041277]
[1720658423512,2.55697485,3097.2,3096.7,0.67743538]
[1720658423689,2.55697485,3097.2,3096.8,2.8106702]
[1720658423893,2.55697485,3097.2,3096.6,1.03659423]
[1720658424122,2.55697485,3097.2,3096.7,3.48815805]
[1720658424307,2.55697485,3097.2,3096.8,0.486347]
[1720658424511,2.55697485,3097.2,3096.7,0.67828808]
[1720658424827,2.55697485,3097.2,3096.8,2.8107594]
[1720658424996,2.55697485,3097.2,3096.9,1.12430359]
[1720658425195,2.55697485,3097.2,3096.7,0.67828808]
[1720658425397,2.55697485,3097.2,3096.8,2.81070695]
[1720658425694,2.55697485,3097.2,3096.9,1.12428278]
[1720658426007,2.55697485,3097.2,3096.7,0.67828808]
[1720658426208,2.55697485,3097.2,3096.8,2.81070188]
[1720658426415,2.55697485,3097.2,3096.9,1.12428075]
[1720658426705,2.55697485,3097.2,3096.7,1.18377599]
[1720658426933,2.55697485,3097.2,3096.8,2.81067368]
[1720658427143,0.06297485,3097.2,3096.9,2.81067368]
[1720658427444,0.06297485,3097.2,3097.0,3.15954514]
[1720658427746,0.06297485,3097.2,3097.0,0.34889618]
[1720658428042,0.06297485,3097.2,3096.8,0.67828808]
[1720658428331,0.06297485,3097.2,3096.9,2.81069381]
[1720658428531,0.06297485,3097.2,3097.0,1.12427752]
[1720658428735,0.06297485,3097.2,3096.9,0.67828808]
[1720658428905,0.06297485,3097.2,3096.7,1.52292004]
[1720658428906,0.06297485,3097.2,3097.0,2.81061988]
[1720658429229,0.06297485,3097.2,3096.8,0.67828808]
[1720658429532,0.06297485,3097.2,3096.9,3.03076119]
[1720658429829,0.06297485,3097.2,3096.9,0.22012081]
[1720658430239,0.06297485,3097.2,3097.0,1.12427753]
[1720658430442,0.06297485,3097.2,3096.9,0.22012081]
[1720658430739,0.06297485,3097.2,3097.0,1.12427776]
[1720658430940,0.06297485,3097.2,3096.9,0.22012081]
[1720658431098,0.06297485,3097.2,3096.7,1.18377599]
[1720658431298,0.06297485,3097.2,3096.8,3.48899788]
[1720658431518,0.06297485,3097.2,3096.9,2.8107098]
[1720658431751,2.4988,3097.1,3096.7,0.67828808]
[1720658431950,2.4988,3097.1,3096.5,1.01743213]
[1720658431951,0.09622033,3097.0,3096.5,0.67828808]
[1720658432142,0.09622033,3097.0,3096.6,1.12439064]
[1720658432341,0.09622033,3097.0,3096.4,0.67828808]
[1720658432551,0.09622033,3097.0,3096.5,1.12443107]
[1720658432887,0.33760462,3096.9,3096.3,0.67828808]
[1720658433161,2.55240245,3096.8,3096.1,0.67828808]
[1720658433370,2.55240245,3096.8,3096.2,2.81136573]
[1720658433662,2.55240245,3096.8,3096.3,1.12451246]
[1720658433864,2.55240245,3096.8,3096.1,0.67828808]
[1720658434050,2.55240245,3096.8,3096.2,2.81126563]
[1720658434250,2.55240245,3096.8,3096.1,1.26256125]
[1720658434456,2.55240245,3096.8,3096.2,2.81129003]
[1720658434655,2.55240245,3096.8,3096.1,0.58427317]
[1720658434843,2.55240245,3096.8,3096.2,2.81126877]
[1720658435044,2.55240245,3096.8,3096.3,1.12447498]
[1720658435244,2.55240245,3096.8,3096.2,0.597183]
[1720658435440,2.55240245,3096.8,3096.3,1.12447367]
[1720658435647,2.55240245,3096.8,3096.1,0.67828808]
[1720658435868,2.55240245,3096.8,3096.2,2.87581892]
[1720658436177,2.55240245,3096.8,3096.1,0.67828808]
[1720658436178,0.09610245,3096.8,3096.3,3.55399715]
[1720658436358,0.09610245,3096.8,3096.4,2.811124]
[1720658436534,0.09610245,3096.8,3096.3,0.74287315]
[1720658436535,0.09610245,3096.8,3096.5,1.47989678]
[1720658436730,0.09610245,3096.8,3096.6,0.06458508]
[1720658436936,0.09610245,3096.8,3096.4,0.67828808]
[1720658437148,0.09610245,3096.8,3096.5,2.81079205]
[1720658437366,0.09610245,3096.8,3096.6,2.81079205]
[1720658437568,0.09610245,3096.8,3096.6,0.34890801]
[1720658437879,0.09610245,3096.8,3096.3,0.67828808]
[1720658438372,0.09610245,3096.8,3096.4,1.12440707]
[1720658438677,0.09610245,3096.8,3096.1,0.67828808]
[1720658438839,0.09610245,3096.8,3096.2,2.81112652]
[1720658439036,0.09610245,3096.8,3096.3,3.22465836]
[1720658439248,0.09610245,3096.8,3096.4,2.81099916]
[1720658439556,0.09610245,3096.8,3096.3,0.41352457]
[1720658439557,0.09610245,3096.8,3096.5,1.12438453]
[1720658439880,0.09610245,3096.8,3096.3,1.09180722]
[1720658440067,0.09610245,3096.8,3096.4,2.81091255]
[1720658440242,0.09610245,3096.8,3096.5,0.39027198]
[1720658440446,0.09610245,3096.8,3096.3,1.02722954]
[1720658440669,0.09610245,3096.8,3096.4,2.81095206]
[1720658440879,0.09610245,3096.8,3096.5,1.12438082]
[1720658441179,0.09610245,3096.8,3096.6,0.06457779]
[1720658442160,0.09610245,3096.8,3096.4,0.06457781]
[1720658442362,0.09610245,3096.8,3096.5,3.24302941]
[1720658442688,0.09610245,3096.8,3096.6,0.06457773]
[1720658445987,0.09610245,3096.8,3096.7,6.03984855]
[1720658446163,5.83959906,3097.5,3096.8,3.22913]
[1720658446366,5.83959906,3097.5,3096.9,3.55346362]
[1720658446367,0.33760061,3097.5,3096.9,3.55346362]
[1720658446562,0.33760061,3097.5,3097.0,3.59061112]
[1720658446888,0.33760061,3097.5,3097.1,2.87517474]
[1720658447053,0.33760061,3097.5,3097.1,0.06456619]
[1720658447255,0.33760061,3097.5,3097.3,1.898]
[1720658447576,0.33760061,3097.5,3097.4,1.12410182]
[1720658447781,0.33760061,3097.5,3097.4,3.75266518]
[1720658448373,0.33760061,3097.5,3097.4,3.75250881]
[1720658449170,0.33760061,3097.5,3097.4,2.06656167]
[1720658449491,0.33760061,3097.5,3097.4,7.65935736]
[1720658451706,0.33760061,3097.5,3097.4,7.65917499]
[1720658452367,0.33760061,3097.5,3097.4,4.43066499]
[1720658452571,0.33760061,3097.5,3097.4,3.75237691]
[1720658453994,0.33760061,3097.5,3097.4,6.98088691]
[1720658455064,0.33760061,3097.5,3097.4,6.98089626]
[1720658455299,2.3999,3098.3,3097.4,7.65918434]
[1720658455483,0.3375779,3098.1,3097.5,4.08836278]
[1720658455796,0.08156575,3098.0,3097.6,1.12391574]
[1720658456097,0.08156575,3098.0,3097.5,4.50696343]
[1720658456296,0.08156575,3098.0,3097.6,1.12391101]
[1720658456596,0.08156575,3098.0,3097.5,4.50696343]
[1720658456898,0.08156575,3098.0,3097.6,1.73668389]
[1720658457203,0.08156575,3098.0,3097.6,0.61278484]
[1720658458701,0.3375779,3098.1,3097.6,0.61278484]
[1720658460908,0.3375779,3098.1,3098.0,0.79]
[1720658466212,0.4193236,3098.1,3098.0,0.79]
[1720658466520,0.4193236,3098.1,3098.0,1.191808]
[1720658466896,0.3375779,3098.1,3098.0,1.191808]
[1720658467402,0.41935397,3098.1,3098.0,1.25635534]
[1720658467819,0.41935397,3098.1,3098.0,7.71211534]
[1720658467820,0.08177607,3098.1,3098.0,7.71211534]
[1720658468133,0.33754207,3098.5,3098.2,3.22765]
[1720658468336,0.33754207,3098.5,3098.4,0.79]
[1720658469102,8.18499906,3099.4,3098.6,3.22718]
[1720658469428,0.07940543,3099.3,3099.2,0.79]
[1720658471001,8.30729906,3099.8,3099.2,0.79]
[1720658471208,0.07967257,3099.7,3099.2,0.79]
[1720658471832,0.07967257,3099.7,3099.4,0.79]
[1720658472008,2.4677,3099.8,3099.4,0.79]
[1720658472330,0.07969716,3099.7,3099.4,0.79]
[1720658472633,2.4677,3099.8,3098.9,5.24694]
[1720658472964,2.4677,3099.8,3099.0,0.9183677]
[1720658472965,0.07969716,3099.7,3099.0,0.9183677]
[1720658473243,0.07969716,3099.7,3099.0,4.08065288]
[1720658473394,0.07969716,3099.7,3099.0,0.85384288]
[1720658473591,0.07969716,3099.7,3098.8,3.22696]
[1720658476107,0.07969716,3099.7,3098.9,0.06452444]
[1720658476307,0.07969716,3099.7,3098.9,2.08452444]
[1720658479554,0.07969716,3099.7,3098.9,5.31146444]
[1720658480257,0.07969716,3099.7,3098.9,2.02]
[1720658480552,2.2822,3099.6,3098.7,3.0]
[1720658480761,2.2822,3099.6,3098.4,2.02]
[1720658480919,2.36153349,3099.5,3098.3,0.322765]
[1720658481118,2.36153349,3099.5,3098.1,3.22771]
[1720658482068,2.36153349,3099.5,3098.0,5.649668]
[1720658482218,2.36153349,3099.5,3098.0,2.421808]
[1720658482650,2.36153349,3099.5,3098.0,5.421808]
[1720658482869,2.2822,3099.3,3098.1,1.1033728]
[1720658483044,2.2822,3099.3,3098.1,4.1033728]
[1720658483374,0.07955165,3099.2,3098.1,4.1033728]
[1720658483652,2.2822,3099.3,3098.1,4.1033728]
[1720658484075,0.07950592,3099.2,3098.1,4.1033728]
[1720658484275,0.07950592,3099.2,3098.2,0.65251808]
[1720658484929,2.2822,3099.3,3098.4,2.02]
[1720658485330,0.07950592,3099.2,3098.4,2.02]
[1720658491177,0.07950592,3099.2,3098.8,2.02]
[1720658491675,0.07929551,3099.1,3098.8,2.02]
[1720658491885,0.07929551,3099.1,3098.9,0.202]
[1720658492058,2.61966836,3099.3,3098.9,0.202]
[1720658492269,0.07932328,3099.0,3098.9,0.202]
[1720658492442,5.83959906,3099.6,3098.9,0.202]
[1720658492644,8.28319906,3099.6,3099.0,0.29318233]
[1720658493483,0.07682335,3099.5,3099.0,0.22865302]
[1720658494392,2.4315,3099.4,3098.5,1.68517875]
[1720658494687,0.0768027,3099.3,3098.5,3.0]
[1720658494839,0.0768027,3099.3,3098.4,2.02]
[1720658494840,0.0768027,3099.3,3098.4,6.70534332]
[1720658495042,2.4315,3099.4,3098.5,2.1168494]
[1720658495271,2.4315,3099.4,3098.5,3.99328633]
[1720658495494,2.4315,3099.4,3098.5,0.99328633]
[1720658495778,2.4315,3099.4,3098.4,2.02]
[1720658496339,2.4315,3099.4,3098.5,1.12354186]
[1720658496545,2.4315,3099.4,3098.6,1.12350923]
[1720658496841,2.4315,3099.4,3098.5,1.6853656]
[1720658497042,2.4315,3099.4,3098.5,1.12349269]
[1720658497270,0.33748423,3099.5,3098.3,0.67475232]
[1720658497271,2.4598,3099.2,3098.3,1.6853656]
[1720658497481,2.4598,3099.2,3098.3,4.6853656]
[1720658497840,2.4598,3099.2,3098.2,2.33788368]
[1720658498047,2.4598,3099.2,3098.2,0.65251808]
[1720658498255,2.53604196,3099.1,3098.1,2.02]
[1720658498460,3.0,3099.0,3098.1,2.02]
[1720658498890,0.07617455,3098.9,3098.1,2.02]
[1720658502928,0.07617455,3098.9,3097.8,0.67475232]
[1720658502929,2.4712,3098.8,3097.8,1.68557896]
[1720658503217,0.07600127,3098.7,3097.9,1.88457788]
[1720658503516,2.4712,3098.8,3097.9,0.76085213]
[1720658504082,0.07600952,3098.7,3097.9,0.76085213]
[1720658504595,2.4712,3098.8,3097.9,2.44643109]
[1720658504812,0.07600952,3098.7,3098.1,2.02]
[1720658505205,2.4712,3098.8,3098.1,2.02]
[1720658512603,2.4712,3098.8,3098.5,0.789]
[1720658512794,0.07638579,3098.7,3098.5,0.789]
[1720658513129,2.4712,3098.8,3098.5,0.789]
[1720658513603,0.07597058,3098.7,3098.5,0.789]
[1720658513907,2.4712,3098.8,3098.5,0.789]
[1720658514116,2.4712,3098.8,3098.7,0.789]
[1720658515782,2.4456,3099.3,3098.7,0.789]
[1720658520723,0.07393727,3099.2,3098.7,0.789]
[1720658520880,3.07393727,3099.2,3098.7,0.789]
[1720658521215,3.07393727,3099.2,3098.9,0.789]
[1720658522080,3.07393727,3099.2,3098.3,0.74150839]
[1720658522081,0.07393727,3099.2,3099.1,0.789]
[1720658522276,8.30969906,3099.6,3099.1,0.789]
[1720658522534,8.30969906,3099.6,3099.4,0.789]
[1720658522681,8.30969906,3099.6,3098.6,0.67697001]
[1720658522878,2.54369779,3099.5,3098.7,0.789]
[1720658523093,3.38202748,3099.5,3098.7,0.789]
[1720658523533,2.54369779,3099.5,3098.9,0.789]
[1720658524252,2.54369779,3099.5,3098.5,1.68539179]
[1720658524253,2.54369779,3099.5,3098.7,0.789]
[1720658524532,3.58745726,3099.4,3098.7,0.789]
[1720658524741,2.4693,3099.3,3098.3,0.67750068]
[1720658525051,1.11822279,3099.2,3098.3,0.39409964]
[1720658525336,0.07351542,3099.2,3098.4,2.80916087]
[1720658525537,0.07351542,3099.2,3098.2,0.67750068]
[1720658525832,3.07351542,3099.2,3098.0,0.24464311]
[1720658526031,3.07351542,3099.2,3098.1,0.53665531]
[1720658526799,1.11821093,3099.1,3098.2,2.80917736]
[1720658527000,3.07351542,3099.2,3098.3,2.80917736]
[1720658527215,3.07351542,3099.2,3098.4,2.80917736]
[1720658527216,0.07398552,3099.0,3098.4,2.80917736]
[1720658527412,0.07401436,3099.1,3098.3,0.67791099]
[1720658527737,0.07347772,3099.0,3098.4,2.80918473]
[1720658527898,0.07347772,3099.0,3098.5,0.28091847]
[1720658528239,3.0,3099.2,3098.2,0.67791099]
[1720658528394,0.07395668,3098.9,3098.3,2.80918328]
[1720658528598,3.0,3099.2,3098.4,1.12367331]
[1720658528836,3.0,3099.2,3098.2,0.67791099]
[1720658528837,0.07392784,3098.8,3098.2,0.67791099]
[1720658529041,5.4693,3099.3,3098.3,2.80919332]
[1720658529042,3.0,3099.2,3098.3,2.80919332]
[1720658529198,0.07389899,3098.7,3098.4,1.12367733]
[1720658529402,0.07389899,3098.7,3098.3,0.40237596]
[1720658529403,3.0,3099.2,3098.3,0.40237596]
[1720658529634,0.07336228,3098.6,3098.4,1.12367545]
[1720658529835,3.0,3099.2,3098.2,0.67791099]
[1720658530033,5.4693,3099.3,3098.3,2.80919451]
[1720658530234,0.07350812,3099.1,3098.4,1.1236778]
[1720658530435,3.07354522,3099.2,3098.2,0.67791099]
[1720658530653,0.07348752,3099.0,3098.3,2.80917915]
[1720658530859,0.07351637,3099.1,3098.4,1.47238067]
[1720658531040,3.0,3099.2,3098.4,0.34870901]
[1720658531041,0.07345866,3098.9,3098.4,0.34870901]
[1720658531242,0.07348752,3099.0,3098.2,0.67791099]
[1720658531571,0.07342154,3098.8,3098.3,2.8092159]
[1720658531769,3.0,3099.2,3098.4,1.12368636]
[1720658532071,0.07339268,3098.7,3098.2,0.67791099]
[1720658532367,0.07337208,3098.6,3098.3,2.80921038]
[1720658532663,3.0,3099.2,3098.4,1.47239977]
[1720658532863,1.11822741,3099.1,3098.4,0.34871214]
[1720658533026,0.07351637,3099.1,3098.3,2.4415]
[1720658533233,0.07351637,3099.1,3098.4,1.12365606]
[1720658533433,0.07351637,3099.1,3098.3,2.4415]
[1720658533645,0.07351637,3099.1,3098.4,1.12366139]
[1720658533846,0.07351637,3099.1,3098.5,2.80912384]
[1720658534063,0.07351637,3099.1,3098.5,0.59285348]
[1720658534249,0.07351637,3099.1,3098.3,2.4415]
[1720658534567,0.07351637,3099.1,3098.4,1.12366618]
[1720658534731,0.07351637,3099.1,3098.3,2.4415]
[1720658534932,0.07351637,3099.1,3098.4,1.12366678]
[1720658535152,0.07351637,3099.1,3098.5,2.80912794]
[1720658535365,0.07351637,3099.1,3098.2,0.67791099]
[1720658535544,0.07351637,3099.1,3098.3,3.03232924]
[1720658535755,0.07351637,3099.1,3098.4,1.12367438]
[1720658536073,0.07351637,3099.1,3098.3,0.22314328]
[1720658536273,0.07351637,3099.1,3098.4,2.80919138]
[1720658536571,0.07351637,3099.1,3098.3,0.22314328]
[1720658536725,0.07351637,3099.1,3098.4,2.80920585]
[1720658536929,0.07351637,3099.1,3098.3,0.22314328]
[1720658537131,0.07351637,3099.1,3098.4,2.80919391]
[1720658537371,0.07351637,3099.1,3098.4,0.37102743]
[1720658537674,0.07351637,3099.1,3098.3,0.22314328]
[1720658537830,0.07351637,3099.1,3098.4,2.80921695]
[1720658538035,0.07351637,3099.1,3098.3,0.22314328]
[1720658538249,0.07351637,3099.1,3098.4,2.80922425]
[1720658538590,0.07351637,3099.1,3098.3,0.22314328]
[1720658538776,0.07351637,3099.1,3098.4,2.80922198]
[1720658538979,0.07351637,3099.1,3098.5,1.12368879]
[1720658539162,0.07351637,3099.1,3098.6,1.12362909]
[1720658539365,0.07351637,3099.1,3098.4,0.37103024]
[1720658539567,0.07351637,3099.1,3098.5,2.80906565]
[1720658539859,0.07351637,3099.1,3098.4,0.37103024]
[1720658540063,0.07351637,3099.1,3098.5,2.80909035]
[1720658540266,0.07351637,3099.1,3098.6,2.8090733]
[1720658540453,0.07351637,3099.1,3098.4,0.67793712]
[1720658540645,0.07351637,3099.1,3098.5,2.80918616]
[1720658540851,0.07351637,3099.1,3098.6,1.12367446]
[1720658541050,0.07351637,3099.1,3098.4,0.67793712]
[1720658541297,0.07351637,3099.1,3098.5,2.80919023]
[1720658541451,0.07351637,3099.1,3098.6,1.12367609]
[1720658541659,0.07351637,3099.1,3098.4,0.8474214]
[1720658541858,0.07351637,3099.1,3098.5,2.80920585]
[1720658542197,0.07351637,3099.1,3098.6,1.12368578]
[1720658542354,0.07351637,3099.1,3098.4,0.8474214]
[1720658542554,0.07351637,3099.1,3098.5,2.80921868]
[1720658542755,0.07351637,3099.1,3098.4,0.8474214]
[1720658543288,0.07351637,3099.1,3098.5,2.80921053]
[1720658543468,0.07351637,3099.1,3098.6,1.12368421]
[1720658543800,0.07351637,3099.1,3098.4,0.8474214]
[1720658543967,0.07351637,3099.1,3098.5,2.8091807]
[1720658544168,0.07351637,3099.1,3098.4,0.8474214]
[1720658544169,0.07351637,3099.1,3098.6,1.12367228]
[1720658544359,2.43,3099.0,3098.4,0.67793712]
[1720658544691,2.43,3099.0,3098.7,0.789]
[1720658544869,0.07085366,3098.9,3098.7,0.789]
[1720658549693,0.07085366,3098.9,3098.8,1.12365197]
[1720658549893,0.07085366,3098.9,3098.7,0.789]
[1720658550662,3.0,3099.1,3098.7,0.789]
[1720658550910,0.07096297,3099.0,3098.9,0.789]
[1720658551204,2.4228,3099.4,3098.9,1.91260082]
[1720658551410,2.4228,3099.4,3099.0,1.1235488]
[1720658551564,0.07096297,3099.0,3098.9,0.789]
[1720658551766,2.4228,3099.4,3098.9,3.59787078]
[1720658551967,2.4228,3099.4,3098.9,0.789]
[1720658553111,2.4228,3099.4,3099.2,0.789]
[1720658553883,0.07114873,3099.3,3099.2,0.789]
[1720658554509,0.07114873,3099.3,3099.0,0.789]
[1720658555623,0.07114873,3099.3,3098.8,0.789]
[1720658557621,0.07114873,3099.3,3098.9,1.12358179]
[1720658557917,0.07114873,3099.3,3098.8,0.789]
[1720658558219,0.07114873,3099.3,3098.9,1.12359288]
[1720658558420,0.07114873,3099.3,3098.8,0.789]
[1720658558623,0.07114873,3099.3,3098.9,1.12358436]
[1720658558822,0.07114873,3099.3,3098.8,0.789]
[1720658558990,0.07114873,3099.3,3098.9,1.12359653]
[1720658559191,0.07114873,3099.3,3098.8,0.789]
[1720658562102,0.07114873,3099.3,3098.9,1.12361046]
[1720658562299,0.07114873,3099.3,3098.8,0.789]
[1720658562502,0.07114873,3099.3,3098.9,1.12359351]
[1720658562715,0.07114873,3099.3,3099.0,0.789]
[1720658563605,0.07114873,3099.3,3099.2,0.789]